[Event "FIDE World Rapid Chess Championship 2021"]
[White "Niemann, Hans Moke"]
[Black "Alekseenko, Kirill"]
[WhiteFideId "2093596"]
[BlackFideId "4135539"]
[WhiteElo "2327"]
[BlackElo "2637"]
[Result "1-0"]
[Round "05"]
[TimeControl "900+10"]
[Date "2021.12.26"]
[WhiteClock "0:08:47"]
[BlackClock "0:00:28"]

1. d4 {[%clk 0:08:47]}  Nf6 {[%clk 0:00:28]} 2. c4 {[%clk 0:08:47]}  e6 {[%clk 0:00:28]} 3. Nc3 {[%clk 0:08:47]}  Bb4 {[%clk 0:00:28]} 4. e3 {[%clk 0:08:47]}  O-O {[%clk 0:00:28]} 5. Bd3 {[%clk 0:08:47]}  d6 {[%clk 0:00:28]} 6. Ne2 {[%clk 0:08:47]}  b6 {[%clk 0:00:28]} 7. a3 {[%clk 0:08:47]}  Bxc3+ {[%clk 0:00:28]} 8. Nxc3 {[%clk 0:08:47]}  Bb7 {[%clk 0:00:28]} 9. e4 {[%clk 0:08:47]}  Nbd7 {[%clk 0:00:28]} 10. O-O {[%clk 0:08:47]}  c5 {[%clk 0:00:28]} 11. d5 {[%clk 0:08:47]}  Ne5 {[%clk 0:00:28]} 12. Be2 {[%clk 0:08:47]}  exd5 {[%clk 0:00:28]} 13. exd5 {[%clk 0:08:47]}  Re8 {[%clk 0:00:28]} 14. f4 {[%clk 0:08:47]}  Ng6 {[%clk 0:00:28]} 15. Bd3 {[%clk 0:08:47]}  Bc8 {[%clk 0:00:28]} 16. h3 {[%clk 0:08:47]}  a6 {[%clk 0:00:28]} 17. a4 {[%clk 0:08:47]}  Bd7 {[%clk 0:00:28]} 18. Kh2 {[%clk 0:08:47]}  Qc8 {[%clk 0:00:28]} 19. f5 {[%clk 0:08:47]}  Ne5 {[%clk 0:00:28]} 20. Bg5 {[%clk 0:08:47]}  Kh8 {[%clk 0:00:28]} 21. Bxf6 {[%clk 0:08:47]}  gxf6 {[%clk 0:00:28]} 22. Ne4 {[%clk 0:08:47]}  Qd8 {[%clk 0:00:28]} 23. Bc2 {[%clk 0:08:47]}  Nxc4 {[%clk 0:00:28]} 24. Qh5 {[%clk 0:08:47]}  Rxe4 {[%clk 0:00:28]} 25. Bxe4 {[%clk 0:08:47]}  Qg8 {[%clk 0:00:28]} 26. Rf3 {[%clk 0:08:47]}  Qg5 {[%clk 0:00:28]} 27. Qxg5 {[%clk 0:08:47]}  fxg5 {[%clk 0:00:28]} 28. f6 {[%clk 0:08:47]}  Nd2 {[%clk 0:00:28]} 29. Re3 {[%clk 0:08:47]}  Re8 {[%clk 0:00:28]} 30. Rae1 {[%clk 0:08:47]}  Nc4 {[%clk 0:00:28]} 31. R3e2 {[%clk 0:08:47]}  Ne5 {[%clk 0:00:28]} 32. Bc2 {[%clk 0:08:47]}  h6 {[%clk 0:00:28]} 33. Kg3 {[%clk 0:08:47]}  Kg8 {[%clk 0:00:28]} 34. Rh1 {[%clk 0:08:47]}  b5 {[%clk 0:00:28]} 35. h4 {[%clk 0:08:47]}  g4 {[%clk 0:00:28]} 36. axb5 {[%clk 0:08:47]}  Bxb5 {[%clk 0:00:28]} 37. Re4 {[%clk 0:08:47]}  Rb8 {[%clk 0:00:28]} 38. Rd1 {[%clk 0:08:47]}  Bd7 {[%clk 0:00:28]} 39. Re2 {[%clk 0:08:47]}  Kf8 {[%clk 0:00:28]} 40. h5 {[%clk 0:08:47]}  Rxb2 {[%clk 0:00:28]} 41. Rb1 {[%clk 0:08:47]}  Rxb1 {[%clk 0:00:28]} 42. Bxb1 {[%clk 0:08:47]}  Bb5 {[%clk 0:00:28]} 43. Re4 {[%clk 0:08:47]}  Bc4 {[%clk 0:00:28]} 44. Kf4 {[%clk 0:08:47]}  Bxd5 {[%clk 0:00:28]} 45. Ra4 {[%clk 0:08:47]}  Bc4 {[%clk 0:00:28]} 46. Bf5 {[%clk 0:08:47]}  Ke8 {[%clk 0:00:28]} 47. Bxg4 {[%clk 0:08:47]}  Nxg4 {[%clk 0:00:28]} 48. Kxg4 {[%clk 0:08:47]}  Bd3 {[%clk 0:00:28]} 49. Ra3 {[%clk 0:08:47]}  c4 {[%clk 0:00:28]} 50. Kf4 {[%clk 0:08:47]}  Kd7 {[%clk 0:00:28]} 51. g4 {[%clk 0:08:47]}  Ke6 {[%clk 0:00:28]} 52. g5 {[%clk 0:08:47]}  hxg5+ {[%clk 0:00:28]} 53. Kxg5 {[%clk 0:08:47]}  Ke5 {[%clk 0:00:28]} 54. Ra1 {[%clk 0:08:47]}  c3 {[%clk 0:00:28]} 55. Re1+ {[%clk 0:08:47]}  Be4 {[%clk 0:00:28]} 56. Kh6 {[%clk 0:08:47]}  Kxf6 {[%clk 0:00:28]} 57. Rxe4 {[%clk 0:08:47]}  d5 {[%clk 0:00:28]} 58. Re8 {[%clk 0:08:47]}  d4 {[%clk 0:00:28]} 59. Rc8 {[%clk 0:08:47]}  a5 {[%clk 0:00:28]} 60. Rc6+ {[%clk 0:08:47]}  Ke5 {[%clk 0:00:28]} 61. Kg7 {[%clk 0:08:47]}  Kd5 {[%clk 0:00:28]} 62. Rc8 {[%clk 0:08:47]}  a4 {[%clk 0:00:28]} 63. h6 {[%clk 0:08:47]}  a3 {[%clk 0:00:28]} 64. h7 {[%clk 0:08:47]}  a2 {[%clk 0:00:28]} 65. Ra8 {[%clk 0:08:47]}  c2 {[%clk 0:00:28]} 66. h8=Q {[%clk 0:08:47]}  c1=Q {[%clk 0:00:28]} 67. Qh5+ {[%clk 0:08:47]}  Ke4 {[%clk 0:00:28]} 68. Re8+ {[%clk 0:08:47]}  Kd3 {[%clk 0:00:28]} 69. Qe2+ {[%clk 0:08:47]} 1-0


[Site "http://www.Chess.com"]

[Event "FIDE World Rapid Chess Championship 2021"]
[White "Rapport, Richard"]
[Black "Muradli, Mahammad"]
[WhiteFideId "738590"]
[BlackFideId "13409301"]
[WhiteElo "2750"]
[BlackElo "2285"]
[Result "1-0"]
[Round "05"]
[TimeControl "900+10"]
[Date "2021.12.26"]
[WhiteClock "0:04:23"]
[BlackClock "0:00:13"]

1. e4 {[%clk 0:04:23]}  c5 {[%clk 0:00:13]} 2. Nc3 {[%clk 0:04:23]}  d6 {[%clk 0:00:13]} 3. Bc4 {[%clk 0:04:23]}  e6 {[%clk 0:00:13]} 4. a3 {[%clk 0:04:23]}  a6 {[%clk 0:00:13]} 5. Ba2 {[%clk 0:04:23]}  Nc6 {[%clk 0:00:13]} 6. d3 {[%clk 0:04:23]}  g6 {[%clk 0:00:13]} 7. Nge2 {[%clk 0:04:23]}  Bg7 {[%clk 0:00:13]} 8. Be3 {[%clk 0:04:23]}  Nge7 {[%clk 0:00:13]} 9. Qd2 {[%clk 0:04:23]}  Nd4 {[%clk 0:00:13]} 10. O-O {[%clk 0:04:23]}  O-O {[%clk 0:00:13]} 11. Kh1 {[%clk 0:04:23]}  b5 {[%clk 0:00:13]} 12. Bh6 {[%clk 0:04:23]}  Nec6 {[%clk 0:00:13]} 13. Bxg7 {[%clk 0:04:23]}  Kxg7 {[%clk 0:00:13]} 14. Nxd4 {[%clk 0:04:23]}  Nxd4 {[%clk 0:00:13]} 15. Rae1 {[%clk 0:04:23]}  Bb7 {[%clk 0:00:13]} 16. Nd1 {[%clk 0:04:23]}  Qh4 {[%clk 0:00:13]} 17. f4 {[%clk 0:04:23]}  Rae8 {[%clk 0:00:13]} 18. c3 {[%clk 0:04:23]}  Nc6 {[%clk 0:00:13]} 19. f5 {[%clk 0:04:23]}  gxf5 {[%clk 0:00:13]} 20. Re3 {[%clk 0:04:23]}  Ne5 {[%clk 0:00:13]} 21. Rh3 {[%clk 0:04:23]}  Qf6 {[%clk 0:00:13]} 22. Ne3 {[%clk 0:04:23]}  Kh8 {[%clk 0:00:13]} 23. exf5 {[%clk 0:04:23]}  Qg5 {[%clk 0:00:13]} 24. Rg3 {[%clk 0:04:23]}  Qh6 {[%clk 0:00:13]} 25. d4 {[%clk 0:04:23]}  Nd7 {[%clk 0:00:13]} 26. dxc5 {[%clk 0:04:23]}  Nxc5 {[%clk 0:00:13]} 27. Qd4+ {[%clk 0:04:23]}  e5 {[%clk 0:00:13]} 28. Ng4 {[%clk 0:04:23]}  Qh4 {[%clk 0:00:13]} 29. Nxe5 {[%clk 0:04:23]}  Qxd4 {[%clk 0:00:13]} 30. cxd4 {[%clk 0:04:23]}  Ne4 {[%clk 0:00:13]} 31. Nxf7+ {[%clk 0:04:23]}  Rxf7 {[%clk 0:00:13]} 32. Bxf7 {[%clk 0:04:23]}  Nxg3+ {[%clk 0:00:13]} 33. hxg3 {[%clk 0:04:23]}  Re2 {[%clk 0:00:13]} 34. d5 {[%clk 0:04:23]}  Kg7 {[%clk 0:00:13]} 35. Bh5 {[%clk 0:04:23]}  Re5 {[%clk 0:00:13]} 36. f6+ {[%clk 0:04:23]}  Kf8 {[%clk 0:00:13]} 37. g4 {[%clk 0:04:23]}  Bxd5 {[%clk 0:00:13]} 38. Rc1 {[%clk 0:04:23]}  Bc4 {[%clk 0:00:13]} 39. b3 {[%clk 0:04:23]}  Be6 {[%clk 0:00:13]} 40. Rc7 {[%clk 0:04:23]}  Re1+ {[%clk 0:00:13]} 41. Kh2 {[%clk 0:04:23]}  Rf1 {[%clk 0:00:13]} 42. g5 {[%clk 0:04:23]}  h6 {[%clk 0:00:13]} 43. Re7 {[%clk 0:04:23]} 1-0


[Site "http://www.Chess.com"]

[Event "FIDE World Rapid Chess Championship 2021"]
[White "Wojtaszek, Radoslaw"]
[Black "Corrales Jimenez, Fidel"]
[WhiteFideId "1118358"]
[BlackFideId "3506690"]
[WhiteElo "2743"]
[BlackElo "2561"]
[Result "1-0"]
[Round "05"]
[TimeControl "900+10"]
[Date "2021.12.26"]
[WhiteClock "0:00:42"]
[BlackClock "0:00:31"]

1. d4 {[%clk 0:00:42]}  Nf6 {[%clk 0:00:31]} 2. c4 {[%clk 0:00:42]}  g6 {[%clk 0:00:31]} 3. Nf3 {[%clk 0:00:42]}  Bg7 {[%clk 0:00:31]} 4. g3 {[%clk 0:00:42]}  O-O {[%clk 0:00:31]} 5. Bg2 {[%clk 0:00:42]}  d5 {[%clk 0:00:31]} 6. cxd5 {[%clk 0:00:42]}  Nxd5 {[%clk 0:00:31]} 7. O-O {[%clk 0:00:42]}  Nb6 {[%clk 0:00:31]} 8. Nc3 {[%clk 0:00:42]}  Nc6 {[%clk 0:00:31]} 9. e3 {[%clk 0:00:42]}  Re8 {[%clk 0:00:31]} 10. Re1 {[%clk 0:00:42]}  e5 {[%clk 0:00:31]} 11. d5 {[%clk 0:00:42]}  Na5 {[%clk 0:00:31]} 12. e4 {[%clk 0:00:42]}  c6 {[%clk 0:00:31]} 13. b4 {[%clk 0:00:42]}  Nac4 {[%clk 0:00:31]} 14. dxc6 {[%clk 0:00:42]}  bxc6 {[%clk 0:00:31]} 15. Nd2 {[%clk 0:00:42]}  Qd3 {[%clk 0:00:31]} 16. Qf3 {[%clk 0:00:42]}  Qxf3 {[%clk 0:00:31]} 17. Bxf3 {[%clk 0:00:42]}  Nxd2 {[%clk 0:00:31]} 18. Bxd2 {[%clk 0:00:42]}  Nc4 {[%clk 0:00:31]} 19. Bc1 {[%clk 0:00:42]}  a5 {[%clk 0:00:31]} 20. Rb1 {[%clk 0:00:42]}  Bf8 {[%clk 0:00:31]} 21. bxa5 {[%clk 0:00:42]}  Be6 {[%clk 0:00:31]} 22. a4 {[%clk 0:00:42]}  Rxa5 {[%clk 0:00:31]} 23. Bd1 {[%clk 0:00:42]}  h5 {[%clk 0:00:31]} 24. Kg2 {[%clk 0:00:42]}  Bc5 {[%clk 0:00:31]} 25. Bc2 {[%clk 0:00:42]}  Kg7 {[%clk 0:00:31]} 26. Nd1 {[%clk 0:00:42]}  Rd8 {[%clk 0:00:31]} 27. Ne3 {[%clk 0:00:42]}  Bxe3 {[%clk 0:00:31]} 28. Bxe3 {[%clk 0:00:42]}  Nxe3+ {[%clk 0:00:31]} 29. Rxe3 {[%clk 0:00:42]}  Rc5 {[%clk 0:00:31]} 30. Bd1 {[%clk 0:00:42]}  Rd2 {[%clk 0:00:31]} 31. Ra3 {[%clk 0:00:42]}  Bg4 {[%clk 0:00:31]} 32. Raa1 {[%clk 0:00:42]}  Rc4 {[%clk 0:00:31]} 33. a5 {[%clk 0:00:42]}  Rxe4 {[%clk 0:00:31]} 34. Bxg4 {[%clk 0:00:42]}  hxg4 {[%clk 0:00:31]} 35. Re1 {[%clk 0:00:42]}  Rxe1 {[%clk 0:00:31]} 36. Rxe1 {[%clk 0:00:42]}  Kf6 {[%clk 0:00:31]} 37. Rc1 {[%clk 0:00:42]}  Rd6 {[%clk 0:00:31]} 38. a6 {[%clk 0:00:42]}  c5 {[%clk 0:00:31]} 39. Ra1 {[%clk 0:00:42]}  Rd8 {[%clk 0:00:31]} 40. a7 {[%clk 0:00:42]}  Ra8 {[%clk 0:00:31]} 41. f3 {[%clk 0:00:42]}  gxf3+ {[%clk 0:00:31]} 42. Kxf3 {[%clk 0:00:42]}  Ke6 {[%clk 0:00:31]} 43. g4 {[%clk 0:00:42]}  f5 {[%clk 0:00:31]} 44. gxf5+ {[%clk 0:00:42]}  gxf5 {[%clk 0:00:31]} 45. h4 {[%clk 0:00:42]}  c4 {[%clk 0:00:31]} 46. h5 {[%clk 0:00:42]}  Kd5 {[%clk 0:00:31]} 47. h6 {[%clk 0:00:42]}  Kd4 {[%clk 0:00:31]} 48. h7 {[%clk 0:00:42]}  Kd3 {[%clk 0:00:31]} 49. Rd1+ {[%clk 0:00:42]}  Kc2 {[%clk 0:00:31]} 50. Rg1 {[%clk 0:00:42]}  f4 {[%clk 0:00:31]} 51. Rg8 {[%clk 0:00:42]}  Rxa7 {[%clk 0:00:31]} 52. h8=Q {[%clk 0:00:42]}  Ra3+ {[%clk 0:00:31]} 53. Kf2 {[%clk 0:00:42]}  e4 {[%clk 0:00:31]} 54. Qd4 {[%clk 0:00:42]}  Rf3+ {[%clk 0:00:31]} 55. Kg2 {[%clk 0:00:42]}  Re3 {[%clk 0:00:31]} 56. Qxc4+ {[%clk 0:00:42]}  Kd2 {[%clk 0:00:31]} 57. Rd8+ {[%clk 0:00:42]} 1-0


[Site "http://www.Chess.com"]

[Event "FIDE World Rapid Chess Championship 2021"]
[White "Mamedyarov, Shakhriyar"]
[Black "Indjic, Aleksandar"]
[WhiteFideId "13401319"]
[BlackFideId "911925"]
[WhiteElo "2727"]
[BlackElo "2544"]
[Result "1-0"]
[Round "05"]
[TimeControl "900+10"]
[Date "2021.12.26"]
[WhiteClock "0:04:29"]
[BlackClock "0:05:07"]

1. d4 {[%clk 0:04:29]}  Nf6 {[%clk 0:05:07]} 2. Bg5 {[%clk 0:04:29]}  d5 {[%clk 0:05:07]} 3. Nd2 {[%clk 0:04:29]}  c5 {[%clk 0:05:07]} 4. dxc5 {[%clk 0:04:29]}  Qa5 {[%clk 0:05:07]} 5. Nf3 {[%clk 0:04:29]}  e6 {[%clk 0:05:07]} 6. e3 {[%clk 0:04:29]}  Ne4 {[%clk 0:05:07]} 7. Bd3 {[%clk 0:04:29]}  Nxc5 {[%clk 0:05:07]} 8. O-O {[%clk 0:04:29]}  Nxd3 {[%clk 0:05:07]} 9. cxd3 {[%clk 0:04:29]}  Nc6 {[%clk 0:05:07]} 10. Nb3 {[%clk 0:04:29]}  Qb6 {[%clk 0:05:07]} 11. e4 {[%clk 0:04:29]}  d4 {[%clk 0:05:07]} 12. e5 {[%clk 0:04:29]}  Bd7 {[%clk 0:05:07]} 13. Rc1 {[%clk 0:04:29]}  h6 {[%clk 0:05:07]} 14. Bh4 {[%clk 0:04:29]}  g5 {[%clk 0:05:07]} 15. Bg3 {[%clk 0:04:29]}  Be7 {[%clk 0:05:07]} 16. Nfd2 {[%clk 0:04:29]}  h5 {[%clk 0:05:07]} 17. Nc4 {[%clk 0:04:29]}  Qb5 {[%clk 0:05:07]} 18. h3 {[%clk 0:04:29]}  Qd5 {[%clk 0:05:07]} 19. Re1 {[%clk 0:04:29]}  b6 {[%clk 0:05:07]} 20. Nbd2 {[%clk 0:04:29]}  O-O-O {[%clk 0:05:07]} 21. Ne4 {[%clk 0:04:29]}  Kb8 {[%clk 0:05:07]} 22. Nf6 {[%clk 0:04:29]}  Bxf6 {[%clk 0:05:07]} 23. exf6+ {[%clk 0:04:29]}  Ka8 {[%clk 0:05:07]} 24. Qb3 {[%clk 0:04:29]}  Bc8 {[%clk 0:05:07]} 25. Nxb6+ {[%clk 0:04:29]}  axb6 {[%clk 0:05:07]} 26. Qxb6 {[%clk 0:04:29]}  Bb7 {[%clk 0:05:07]} 27. Rc5 {[%clk 0:04:29]}  Qxc5 {[%clk 0:05:07]} 28. Qxc5 {[%clk 0:04:29]}  Rd5 {[%clk 0:05:07]} 29. Qa3+ {[%clk 0:04:29]}  Ra5 {[%clk 0:05:07]} 30. Qb3 {[%clk 0:04:29]}  h4 {[%clk 0:05:07]} 31. Bc7 {[%clk 0:04:29]}  Ra6 {[%clk 0:05:07]} 32. Rc1 {[%clk 0:04:29]}  Rc8 {[%clk 0:05:07]} 33. Bd6 {[%clk 0:04:29]}  Rd8 {[%clk 0:05:07]} 34. Bc7 {[%clk 0:04:29]}  Rc8 {[%clk 0:05:07]} 35. Bh2 {[%clk 0:04:29]}  Rg8 {[%clk 0:05:07]} 36. f3 {[%clk 0:04:29]}  Rd8 {[%clk 0:05:07]} 37. Rc5 {[%clk 0:04:29]}  g4 {[%clk 0:05:07]} 38. hxg4 {[%clk 0:04:29]}  h3 {[%clk 0:05:07]} 39. gxh3 {[%clk 0:04:29]}  Rh8 {[%clk 0:05:07]} 40. a3 {[%clk 0:04:29]} 1-0


[Site "http://www.Chess.com"]

[Event "FIDE World Rapid Chess Championship 2021"]
[White "Van Foreest, Jorden"]
[Black "Sargissian, Gabriel"]
[WhiteFideId "1039784"]
[BlackFideId "13300881"]
[WhiteElo "2563"]
[BlackElo "2693"]
[Result "1-0"]
[Round "05"]
[TimeControl "900+10"]
[Date "2021.12.26"]
[WhiteClock "0:10:13"]
[BlackClock "0:00:00"]

1. e4 {[%clk 0:10:13]}  e5 {[%clk 0:00:00]} 2. Nf3 {[%clk 0:10:13]}  Nc6 {[%clk 0:00:00]} 3. Bc4 {[%clk 0:10:13]}  Nf6 {[%clk 0:00:00]} 4. d3 {[%clk 0:10:13]}  Bc5 {[%clk 0:00:00]} 5. c3 {[%clk 0:10:13]}  d6 {[%clk 0:00:00]} 6. O-O {[%clk 0:10:13]}  a5 {[%clk 0:00:00]} 7. Re1 {[%clk 0:10:13]}  Ba7 {[%clk 0:00:00]} 8. Bg5 {[%clk 0:10:13]}  h6 {[%clk 0:00:00]} 9. Bh4 {[%clk 0:10:13]}  O-O {[%clk 0:00:00]} 10. Nbd2 {[%clk 0:10:13]}  Be6 {[%clk 0:00:00]} 11. Bb5 {[%clk 0:10:13]}  g5 {[%clk 0:00:00]} 12. Bg3 {[%clk 0:10:13]}  Nh7 {[%clk 0:00:00]} 13. h3 {[%clk 0:10:13]}  Ne7 {[%clk 0:00:00]} 14. d4 {[%clk 0:10:13]}  f6 {[%clk 0:00:00]} 15. Bc4 {[%clk 0:10:13]}  Bf7 {[%clk 0:00:00]} 16. Bxf7+ {[%clk 0:10:13]}  Rxf7 {[%clk 0:00:00]} 17. Nc4 {[%clk 0:10:13]}  Nc6 {[%clk 0:00:00]} 18. Ne3 {[%clk 0:10:13]}  Ne7 {[%clk 0:00:00]} 19. Qb3 {[%clk 0:10:13]}  a4 {[%clk 0:00:00]} 20. Qc4 {[%clk 0:10:13]}  Kg7 {[%clk 0:00:00]} 21. Rad1 {[%clk 0:10:13]}  Qc8 {[%clk 0:00:00]} 22. Ng4 {[%clk 0:10:13]}  h5 {[%clk 0:00:00]} 23. Ne3 {[%clk 0:10:13]}  Rf8 {[%clk 0:00:00]} 24. Rd2 {[%clk 0:10:13]}  a3 {[%clk 0:00:00]} 25. b4 {[%clk 0:10:13]}  Bb6 {[%clk 0:00:00]} 26. dxe5 {[%clk 0:10:13]}  fxe5 {[%clk 0:00:00]} 27. Qe2 {[%clk 0:10:13]}  Qe6 {[%clk 0:00:00]} 28. c4 {[%clk 0:10:13]}  Bxe3 {[%clk 0:00:00]} 29. Qxe3 {[%clk 0:10:13]}  h4 {[%clk 0:00:00]} 30. Bh2 {[%clk 0:10:13]}  Ng6 {[%clk 0:00:00]} 31. c5 {[%clk 0:10:13]}  g4 {[%clk 0:00:00]} 32. hxg4 {[%clk 0:10:13]}  Qxg4 {[%clk 0:00:00]} 33. cxd6 {[%clk 0:10:13]}  h3 {[%clk 0:00:00]} 34. Bg3 {[%clk 0:10:13]}  hxg2 {[%clk 0:00:00]} 35. Nxe5 {[%clk 0:10:13]}  Qh5 {[%clk 0:00:00]} 36. Kxg2 {[%clk 0:10:13]}  Nxe5 {[%clk 0:00:00]} 37. dxc7 {[%clk 0:10:13]}  Nf6 {[%clk 0:00:00]} 38. Qc3 {[%clk 0:10:13]}  Ng6 {[%clk 0:00:00]} 39. Rd7+ {[%clk 0:10:13]}  Rf7 {[%clk 0:00:00]} 40. Rxf7+ {[%clk 0:10:13]}  Kxf7 {[%clk 0:00:00]} 41. c8=Q {[%clk 0:10:13]} 1-0


[Site "http://www.Chess.com"]

[Event "FIDE World Rapid Chess Championship 2021"]
[White "Onyshchuk, Volodymyr"]
[Black "Bartel, Mateusz"]
[WhiteFideId "14114038"]
[BlackFideId "1112635"]
[WhiteElo "2687"]
[BlackElo "2543"]
[Result "1-0"]
[Round "05"]
[TimeControl "900+10"]
[Date "2021.12.26"]
[WhiteClock "0:02:15"]
[BlackClock "0:00:34"]

1. e4 {[%clk 0:02:15]}  e6 {[%clk 0:00:34]} 2. d4 {[%clk 0:02:15]}  d5 {[%clk 0:00:34]} 3. Bd3 {[%clk 0:02:15]}  dxe4 {[%clk 0:00:34]} 4. Bxe4 {[%clk 0:02:15]}  Nf6 {[%clk 0:00:34]} 5. Bf3 {[%clk 0:02:15]}  Nbd7 {[%clk 0:00:34]} 6. Nc3 {[%clk 0:02:15]}  Rb8 {[%clk 0:00:34]} 7. Nge2 {[%clk 0:02:15]}  b5 {[%clk 0:00:34]} 8. Ng3 {[%clk 0:02:15]}  Bb7 {[%clk 0:00:34]} 9. O-O {[%clk 0:02:15]}  Be7 {[%clk 0:00:34]} 10. Bxb7 {[%clk 0:02:15]}  Rxb7 {[%clk 0:00:34]} 11. d5 {[%clk 0:02:15]}  O-O {[%clk 0:00:34]} 12. dxe6 {[%clk 0:02:15]}  fxe6 {[%clk 0:00:34]} 13. Qe2 {[%clk 0:02:15]}  b4 {[%clk 0:00:34]} 14. Qxe6+ {[%clk 0:02:15]}  Kh8 {[%clk 0:00:34]} 15. Nd5 {[%clk 0:02:15]}  Nxd5 {[%clk 0:00:34]} 16. Qxd5 {[%clk 0:02:15]}  c6 {[%clk 0:00:34]} 17. Qxc6 {[%clk 0:02:15]}  Rc7 {[%clk 0:00:34]} 18. Qe4 {[%clk 0:02:15]}  Nf6 {[%clk 0:00:34]} 19. Qe2 {[%clk 0:02:15]}  Bc5 {[%clk 0:00:34]} 20. Be3 {[%clk 0:02:15]}  Re8 {[%clk 0:00:34]} 21. Rad1 {[%clk 0:02:15]}  Qc8 {[%clk 0:00:34]} 22. Qf3 {[%clk 0:02:15]}  Bf8 {[%clk 0:00:34]} 23. Bd4 {[%clk 0:02:15]}  Rxc2 {[%clk 0:00:34]} 24. Nf5 {[%clk 0:02:15]}  Qc6 {[%clk 0:00:34]} 25. Qd3 {[%clk 0:02:15]}  Nh5 {[%clk 0:00:34]} 26. Ne3 {[%clk 0:02:15]}  Rxe3 {[%clk 0:00:34]} 27. Qxe3 {[%clk 0:02:15]}  h6 {[%clk 0:00:34]} 28. Rc1 {[%clk 0:02:15]}  Kg8 {[%clk 0:00:34]} 29. Qb3+ {[%clk 0:02:15]} 1-0


[Site "http://www.Chess.com"]

[Event "FIDE World Rapid Chess Championship 2021"]
[White "Saric, Ivan"]
[Black "Kobalia, Mikhail"]
[WhiteFideId "14508150"]
[BlackFideId "4119150"]
[WhiteElo "2684"]
[BlackElo "2543"]
[Result "1-0"]
[Round "05"]
[TimeControl "900+10"]
[Date "2021.12.26"]
[WhiteClock "0:00:32"]
[BlackClock "0:00:26"]

1. e4 {[%clk 0:00:32]}  c6 {[%clk 0:00:26]} 2. d4 {[%clk 0:00:32]}  d5 {[%clk 0:00:26]} 3. e5 {[%clk 0:00:32]}  Bf5 {[%clk 0:00:26]} 4. Nf3 {[%clk 0:00:32]}  e6 {[%clk 0:00:26]} 5. Be2 {[%clk 0:00:32]}  Ne7 {[%clk 0:00:26]} 6. Nbd2 {[%clk 0:00:32]}  h6 {[%clk 0:00:26]} 7. O-O {[%clk 0:00:32]}  Nd7 {[%clk 0:00:26]} 8. Nb3 {[%clk 0:00:32]}  Bh7 {[%clk 0:00:26]} 9. a4 {[%clk 0:00:32]}  Ng6 {[%clk 0:00:26]} 10. a5 {[%clk 0:00:32]}  a6 {[%clk 0:00:26]} 11. Be3 {[%clk 0:00:32]}  Be7 {[%clk 0:00:26]} 12. c4 {[%clk 0:00:32]}  O-O {[%clk 0:00:26]} 13. Nbd2 {[%clk 0:00:32]}  c5 {[%clk 0:00:26]} 14. cxd5 {[%clk 0:00:32]}  exd5 {[%clk 0:00:26]} 15. Qb3 {[%clk 0:00:32]}  cxd4 {[%clk 0:00:26]} 16. Bxd4 {[%clk 0:00:32]}  Nf4 {[%clk 0:00:26]} 17. Rfe1 {[%clk 0:00:32]}  Nc5 {[%clk 0:00:26]} 18. Bxc5 {[%clk 0:00:32]}  Bxc5 {[%clk 0:00:26]} 19. Bf1 {[%clk 0:00:32]}  Qd7 {[%clk 0:00:26]} 20. g3 {[%clk 0:00:32]}  Ne6 {[%clk 0:00:26]} 21. Bd3 {[%clk 0:00:32]}  Bg6 {[%clk 0:00:26]} 22. Bxg6 {[%clk 0:00:32]}  fxg6 {[%clk 0:00:26]} 23. Qd3 {[%clk 0:00:32]}  Rf5 {[%clk 0:00:26]} 24. b4 {[%clk 0:00:32]}  Bxb4 {[%clk 0:00:26]} 25. Nh4 {[%clk 0:00:32]}  Rf7 {[%clk 0:00:26]} 26. Nxg6 {[%clk 0:00:32]}  Re8 {[%clk 0:00:26]} 27. Re2 {[%clk 0:00:32]}  Nc5 {[%clk 0:00:26]} 28. Qd4 {[%clk 0:00:32]}  Qb5 {[%clk 0:00:26]} 29. Rae1 {[%clk 0:00:32]}  Nb3 {[%clk 0:00:26]} 30. Nxb3 {[%clk 0:00:32]}  Bxe1 {[%clk 0:00:26]} 31. Rxe1 {[%clk 0:00:32]}  Qxb3 {[%clk 0:00:26]} 32. e6 {[%clk 0:00:32]}  Rf6 {[%clk 0:00:26]} 33. Nf4 {[%clk 0:00:32]}  Rf5 {[%clk 0:00:26]} 34. Rc1 {[%clk 0:00:32]}  Re7 {[%clk 0:00:26]} 35. h4 {[%clk 0:00:32]}  Qf3 {[%clk 0:00:26]} 36. Re1 {[%clk 0:00:32]}  Rxf4 {[%clk 0:00:26]} 37. Qxf4 {[%clk 0:00:32]}  Qxf4 {[%clk 0:00:26]} 38. gxf4 {[%clk 0:00:32]}  g6 {[%clk 0:00:26]} 39. h5 {[%clk 0:00:32]}  Kg7 {[%clk 0:00:26]} 40. Re5 {[%clk 0:00:32]}  d4 {[%clk 0:00:26]} 41. hxg6 {[%clk 0:00:32]}  Kxg6 {[%clk 0:00:26]} 42. f5+ {[%clk 0:00:32]}  Kf6 {[%clk 0:00:26]} 43. Rd5 {[%clk 0:00:32]}  h5 {[%clk 0:00:26]} 44. Kg2 {[%clk 0:00:32]}  Rg7+ {[%clk 0:00:26]} 45. Kf3 {[%clk 0:00:32]}  h4 {[%clk 0:00:26]} 46. Rxd4 {[%clk 0:00:32]}  Kxf5 {[%clk 0:00:26]} 47. Rd7 {[%clk 0:00:32]}  Rg8 {[%clk 0:00:26]} 48. e7 {[%clk 0:00:32]}  Re8 {[%clk 0:00:26]} 49. Rxb7 {[%clk 0:00:32]}  Kf6 {[%clk 0:00:26]} 50. Kg4 {[%clk 0:00:32]}  Rh8 {[%clk 0:00:26]} 51. Rd7 {[%clk 0:00:32]}  Rb8 {[%clk 0:00:26]} 52. Kxh4 {[%clk 0:00:32]}  Kf7 {[%clk 0:00:26]} 53. Ra7 {[%clk 0:00:32]}  Rb4+ {[%clk 0:00:26]} 54. Kg3 {[%clk 0:00:32]}  Rb5 {[%clk 0:00:26]} 55. Rxa6 {[%clk 0:00:32]}  Kxe7 {[%clk 0:00:26]} 56. f4 {[%clk 0:00:32]}  Kf7 {[%clk 0:00:26]} 57. Kg4 {[%clk 0:00:32]}  Kg7 {[%clk 0:00:26]} 58. f5 {[%clk 0:00:32]}  Rb1 {[%clk 0:00:26]} 59. Rg6+ {[%clk 0:00:32]}  Kf7 {[%clk 0:00:26]} 60. a6 {[%clk 0:00:32]}  Ra1 {[%clk 0:00:26]} 61. Rb6 {[%clk 0:00:32]}  Kg7 {[%clk 0:00:26]} 62. Kg5 {[%clk 0:00:32]}  Rg1+ {[%clk 0:00:26]} 63. Kf4 {[%clk 0:00:32]}  Kf7 {[%clk 0:00:26]} 64. Ke4 {[%clk 0:00:32]} 1-0


[Site "http://www.Chess.com"]